fUSD/lending_fUSD_20250505
["ID","MTS","AMOUNT","RATE_DAILY","PERIOD"]
[359885766,1746403844300,-470.0,0.00019984,2]
[359885768,1746403844309,-470.0,0.00019984,2]
[359885770,1746403844321,-450.0,0.00019984,2]
[359885772,1746403844332,-450.0,0.00019984,2]
[359885774,1746403844341,-450.0,0.00019984,2]
[359885775,1746403844351,-527.85746707,0.00019984,2]
[359885777,1746403844360,-450.0,0.00019984,2]
[359885779,1746403844370,-450.0,0.00019984,2]
[359885781,1746403844379,-490.0,0.00019984,2]
[359885783,1746403844388,-450.0,0.00019984,2]
[359885785,1746403844399,-450.0,0.00019984,2]
[359885787,1746403844408,-450.0,0.00019984,2]
[359885789,1746403844418,-450.0,0.00019984,2]
[359885791,1746403844428,-151.0,0.00019984,2]
[359885793,1746403844437,-220.64808,0.00019984,2]
[359885795,1746403844447,-450.0,0.00019984,2]
[359885797,1746403844456,-450.0,0.00019984,2]
[359885799,1746403844466,-450.0,0.00019984,2]
[359885801,1746403844475,-450.0,0.00019984,2]
[359885803,1746403844485,-450.0,0.00019984,2]
[359885805,1746403844494,-576.54,0.00019984,2]
[359885807,1746403844503,-450.0,0.00019984,2]
[359885809,1746403844513,-450.0,0.00019984,2]
[359885811,1746403844522,-450.0,0.00019984,2]
[359885813,1746403844532,-570.0,0.00019984,2]
[359885815,1746403844541,-501.98,0.00019984,2]
[359885817,1746403844551,-450.0,0.00019984,2]
[359885819,1746403844560,-490.0,0.00019984,2]
[359885820,1746403844570,-450.0,0.00019984,2]
[359885822,1746403844582,-450.0,0.00019984,2]
[359885824,1746403844592,-490.0,0.00019984,2]
[359885826,1746403844601,-450.0,0.00019984,2]
[359885828,1746403844611,-450.0,0.00019984,2]
[359885830,1746403844621,-450.0,0.00019984,2]
[359885832,1746403844630,-450.0,0.00019984,2]
[359885834,1746403844639,-450.0,0.00019984,2]
[359885836,1746403844649,-470.0,0.00019984,2]
[359885838,1746403844658,-450.0,0.00019984,2]
[359885840,1746403844669,-450.0,0.00019984,2]
[359885842,1746403844678,-450.0,0.00019984,2]
[359885844,1746403844687,-450.0,0.00019984,2]
[359885846,1746403844696,-438.83311667,0.00019984,2]
[359885848,1746403844707,-450.0,0.00019984,2]
[359885850,1746403844716,-450.0,0.00019984,2]
[359885852,1746403844725,-1000.0,0.00019984,2]
[359885854,1746403844734,-490.0,0.00019984,2]
[359885856,1746403844744,-450.0,0.00019984,2]
[359885858,1746403844753,-13392.31,0.00019984,2]
[359885860,1746403844762,-151.0,0.00019984,2]
[359885862,1746403844772,-151.0,0.00019984,2]
[359885864,1746403844782,-151.0,0.00019984,2]
[359885866,1746403844792,-450.0,0.00019984,2]
[359885868,1746403844801,-470.0,0.00019984,2]
[359885870,1746403844811,-450.0,0.00019984,2]
[359885872,1746403844820,-151.0,0.00019984,2]
[359885874,1746403844830,-151.0,0.00019984,2]
[359885876,1746403844840,-207.06778,0.00019984,2]
[359885878,1746403844850,-522.10119627,0.00019984,2]
[359885880,1746403844859,-450.0,0.00019984,2]
[359885882,1746403844868,-450.0,0.00019984,2]
[359885884,1746403844877,-450.0,0.00019984,2]
[359885886,1746403844886,-450.0,0.00019984,2]
[359885888,1746403844895,-450.0,0.00019984,2]
[359885890,1746403844905,-450.0,0.00019984,2]
[359885892,1746403844914,-500.0,0.00019984,2]
[359885894,1746403844923,-450.0,0.00019984,2]
[359885896,1746403844933,-151.0,0.00019984,2]
[359885897,1746403844942,-450.0,0.00019984,2]
[359885899,1746403844951,-457.313704,0.00019984,2]
[359885903,1746403844974,-13.83954436,0.00019984,2]
[359885905,1746403844984,-450.0,0.00019984,2]
[359885907,1746403844993,-450.0,0.00019984,2]
[359885909,1746403845002,-102.74208092,0.00019984,2]
[359885911,1746403845014,-387.25791908,0.00019984,2]
[359885913,1746403845023,-488.45689752,0.00019984,2]
[359885915,1746403845032,-450.0,0.00019984,2]
[359885917,1746403845042,-264.39709821,0.00019984,2]
[359885919,1746403845051,-450.0,0.00019984,2]
[359885921,1746403845061,-151.0,0.00019984,2]
[359885923,1746403845071,-152.053813,0.00019984,2]
[359885925,1746403845082,-450.0,0.00019984,2]
[359885927,1746403845092,-157.79443066,0.00019984,2]
[359885930,1746403845109,-992.92998863,0.00019984,2]
[359885933,1746403845131,-142.68558071,0.00019984,2]
[359885935,1746403845140,-490.0,0.00019984,2]
[359885937,1746403845149,-1293.41,0.00019984,2]
[359885939,1746403845159,-534.04706118,0.00019984,2]
[359885941,1746403845168,-567.86305537,0.00019984,2]
[359885943,1746403845177,-358.472712,0.00019984,2]
[359885945,1746403845187,-450.0,0.00019984,2]
[359885947,1746403845197,-490.0,0.00019984,2]
[359885949,1746403845206,-450.0,0.00019984,2]
[359885951,1746403845217,-450.0,0.00019984,2]
[359885953,1746403845226,-358.472712,0.00019984,2]
[359885955,1746403845235,-450.0,0.00019984,2]
[359885957,1746403845245,-374.97086568,0.00019984,2]
[359886118,1746403846847,-300.79,0.00019883,2]
[359886120,1746403846858,-775.97385861,0.00019883,2]
[359886122,1746403846869,-608.97631995,0.00019883,2]
[359886124,1746403846878,-277.12547175,0.00019895,2]
[359886126,1746403846888,-582.83158168,0.00019923,2]
[359886128,1746403846899,-216.99841832,0.00019923,2]
[359886130,1746403846909,-450.0,0.00019983,2]
[359886132,1746403846918,-450.0,0.00019983,2]
[359886134,1746403846928,-450.0,0.00019983,2]
[359886136,1746403846938,-450.0,0.00019983,2]
[359886138,1746403846947,-450.0,0.00019983,2]
[359886141,1746403846957,-75.02913432,0.00019984,2]
[359886142,1746403846968,-450.0,0.00019984,2]
[359886144,1746403846977,-450.0,0.00019984,2]
[359886145,1746403846987,-450.0,0.00019984,2]
[359886146,1746403846997,-450.0,0.00019984,2]
[359886147,1746403847006,-450.0,0.00019984,2]
[359886148,1746403847016,-450.0,0.00019984,2]
[359886149,1746403847025,-152.222246,0.00019984,2]
[359886150,1746403847035,-450.0,0.00019984,2]
[359886151,1746403847044,-490.0,0.00019984,2]
[359886152,1746403847054,-490.0,0.00019984,2]
[359886154,1746403847063,-450.0,0.00019984,2]
[359886156,1746403847072,-450.0,0.00019984,2]
[359886158,1746403847082,-450.0,0.00019984,2]
[359886160,1746403847091,-151.0,0.00019984,2]
[359886162,1746403847101,-151.0,0.00019984,2]
[359886164,1746403847111,-450.0,0.00019984,2]
[359886166,1746403847120,-450.0,0.00019984,2]
[359886168,1746403847130,-306.91317026,0.00019984,2]
[359886170,1746403847142,-143.08682974,0.00019984,2]
[359886172,1746403847152,-450.0,0.00019984,2]
[359886174,1746403847162,-450.0,0.00019984,2]
[359886176,1746403847171,-470.15,0.00019984,2]
[359886178,1746403847180,-151.0,0.00019984,2]
[359886180,1746403847189,-450.0,0.00019984,2]
[359886182,1746403847199,-450.0,0.00019984,2]
[359886184,1746403847209,-450.0,0.00019984,2]
[359886186,1746403847219,-151.0,0.00019984,2]
[359886188,1746403847229,-1111.06,0.00019984,2]
[359886190,1746403847238,-215.66564025,0.00019984,2]
[359886192,1746403847248,-450.0,0.00019984,2]
[359886194,1746403847257,-315.94169893,0.00019984,2]
[359886196,1746403847267,-450.0,0.00019984,2]
[359886198,1746403847277,-151.0,0.00019984,2]
[359886200,1746403847286,-450.0,0.00019984,2]
[359886202,1746403847296,-151.0,0.00019984,2]
[359886204,1746403847305,-450.0,0.00019984,2]
[359886206,1746403847316,-450.0,0.00019984,2]
[359886208,1746403847326,-533.38,0.00019984,2]
[359886210,1746403847336,-400.0,0.00019984,2]
[359886212,1746403847346,-206.335176,0.00019984,2]
[359886214,1746403847355,-450.0,0.00019984,2]
[359886216,1746403847365,-500.0,0.00019984,2]
[359886218,1746403847376,-450.0,0.00019984,2]
[359886220,1746403847386,-450.0,0.00019984,2]
[359886222,1746403847396,-450.0,0.00019984,2]
[359886224,1746403847407,-450.0,0.00019984,2]
[359886226,1746403847417,-151.0,0.00019984,2]
[359886228,1746403847427,-151.0,0.00019984,2]
[359886230,1746403847437,-151.0,0.00019984,2]
[359886232,1746403847447,-450.0,0.00019984,2]
[359886234,1746403847457,-450.0,0.00019984,2]
[359886236,1746403847467,-490.0,0.00019984,2]
[359886238,1746403847476,-450.0,0.00019984,2]
[359886240,1746403847486,-450.0,0.00019984,2]
[359886242,1746403847496,-450.0,0.00019984,2]
[359886244,1746403847508,-490.0,0.00019984,2]
[359886246,1746403847518,-471.59,0.00019984,2]
[359886249,1746403847529,-450.0,0.00019984,2]
[359886250,1746403847539,-450.0,0.00019984,2]
[359886253,1746403847549,-450.0,0.00019984,2]
[359886265,1746403847559,-450.0,0.00019984,2]
[359886268,1746403847699,-450.0,0.00019984,2]
[359886270,1746403847710,-450.0,0.00019984,2]
[359886272,1746403847720,-450.0,0.00019984,2]
[359886274,1746403847730,-151.0,0.00019984,2]
[359886276,1746403847740,-152.27012,0.00019984,2]
[359886278,1746403847750,-450.0,0.00019984,2]
[359886280,1746403847759,-508.41,0.00019984,2]
[359886282,1746403847769,-450.0,0.00019984,2]
[359886284,1746403847780,-450.0,0.00019984,2]
[359886286,1746403847790,-180.89,0.00019984,2]
[359886288,1746403847800,-450.0,0.00019984,2]
[359886290,1746403847810,-151.0,0.00019984,2]
[359886292,1746403847819,-450.0,0.00019984,2]
[359886294,1746403847829,-151.0,0.00019984,2]
[359886296,1746403847839,-2984.18,0.00019984,2]
[359886298,1746403847850,-2984.18,0.00019984,2]
[359886300,1746403847860,-151.0,0.00019984,2]
[359886303,1746403847870,-450.0,0.00019984,2]
[359886305,1746403847880,-151.0,0.00019984,2]
[359886307,1746403847891,-515.18,0.00019984,2]
[359886309,1746403847901,-450.0,0.00019984,2]
[359886311,1746403847911,-450.0,0.00019984,2]
[359886313,1746403847922,-450.0,0.00019984,2]
[359886314,1746403847932,-450.0,0.00019984,2]
[359886317,1746403847941,-450.0,0.00019984,2]
[359886319,1746403847952,-450.0,0.00019984,2]
[359886320,1746403847962,-450.0,0.00019984,2]
[359886322,1746403847971,-450.0,0.00019984,2]
[359886325,1746403847981,-450.0,0.00019984,2]
[359886327,1746403847990,-450.0,0.00019984,2]
[359886329,1746403848000,-450.0,0.00019984,2]
[359886330,1746403848009,-450.0,0.00019984,2]
[359886333,1746403848019,-450.0,0.00019984,2]
[359886334,1746403848028,-450.0,0.00019984,2]
[359886337,1746403848038,-450.0,0.00019984,2]
[359886339,1746403848048,-450.0,0.00019984,2]
[359886341,1746403848058,-470.0,0.00019984,2]
[359886343,1746403848068,-470.0,0.00019984,2]
[359886345,1746403848078,-450.0,0.00019984,2]
[359886347,1746403848089,-450.0,0.00019984,2]
[359886348,1746403848099,-151.0,0.00019984,2]
[359886351,1746403848109,-151.0,0.00019984,2]
[359886352,1746403848119,-506.0,0.00019984,2]
[359886355,1746403848130,-450.0,0.00019984,2]
[359886357,1746403848141,-151.766547,0.00019984,2]
[359886359,1746403848151,-556.17257505,0.00019984,2]
[359886361,1746403848162,-151.0,0.00019984,2]
[359886363,1746403848173,-151.0,0.00019984,2]
[359886365,1746403848183,-151.0,0.00019984,2]
[359886367,1746403848194,-450.0,0.00019984,2]
[359886368,1746403848204,-450.0,0.00019984,2]
[359886370,1746403848214,-550.4869439,0.00019984,2]
[359886372,1746403848225,-474.45,0.00019984,2]
[359886374,1746403848235,-450.0,0.00019984,2]
[359886377,1746403848245,-151.0,0.00019984,2]
[359886379,1746403848256,-200.0,0.00019984,2]
[359886380,1746403848265,-151.0,0.00019984,2]
[359886382,1746403848275,-470.0,0.00019984,2]
[359886385,1746403848286,-450.0,0.00019984,2]
[359886387,1746403848296,-450.0,0.00019984,2]
[359886389,1746403848308,-450.0,0.00019984,2]
[359886391,1746403848318,-450.0,0.00019984,2]
[359886393,1746403848329,-450.0,0.00019984,2]
[359886395,1746403848339,-450.0,0.00019984,2]
[359886397,1746403848350,-450.0,0.00019984,2]
[359886399,1746403848361,-450.0,0.00019984,2]
[359886401,1746403848371,-204.5,0.00019984,2]
[359886403,1746403848381,-450.0,0.00019984,2]
[359886405,1746403848392,-450.0,0.00019984,2]
[359886407,1746403848401,-450.0,0.00019984,2]
[359886409,1746403848411,-151.0,0.00019984,2]
[359886411,1746403848421,-151.0,0.00019984,2]
[359886413,1746403848431,-450.0,0.00019984,2]
[359886415,1746403848441,-450.0,0.00019984,2]
[359886417,1746403848451,-450.0,0.00019984,2]
[359886419,1746403848461,-450.0,0.00019984,2]
[359886420,1746403848471,-450.0,0.00019984,2]
[359886421,1746403848481,-306.84741774,0.00019984,2]
[359886422,1746403848492,-450.0,0.00019984,2]
[359886423,1746403848502,-151.0,0.00019984,2]
[359886424,1746403848512,-935.77,0.00019984,2]
[359886425,1746403848523,-450.0,0.00019984,2]
[359886426,1746403848532,-450.0,0.00019984,2]
[359886427,1746403848543,-450.0,0.00019984,2]
[359886429,1746403848553,-450.0,0.00019984,2]
[359886431,1746403848563,-151.0,0.00019984,2]
[359886433,1746403848572,-450.0,0.00019984,2]
[359886435,1746403848585,-450.0,0.00019984,2]
[359886437,1746403848595,-450.0,0.00019984,2]
[359886439,1746403848605,-450.0,0.00019984,2]
[359886441,1746403848615,-513.6890662,0.00019984,2]
[359886443,1746403848625,-450.0,0.00019984,2]
[359886445,1746403848636,-470.0,0.00019984,2]
[359886447,1746403848646,-450.0,0.00019984,2]
[359886449,1746403848656,-450.0,0.00019984,2]
[359886451,1746403848666,-300.0,0.00019984,2]
[359886454,1746403848677,-151.0,0.00019984,2]
[359886456,1746403848686,-641.32,0.00019985,2]
[359886457,1746403848696,-450.0,0.00019985,2]
[359886460,1746403848706,-450.0,0.00019985,2]
[359886462,1746403848716,-450.0,0.00019985,2]
[359886464,1746403848725,-450.0,0.00019985,2]
[359886466,1746403848736,-450.0,0.00019985,2]
[359886468,1746403848747,-450.0,0.00019985,2]
[359886470,1746403848758,-490.0,0.00019985,2]
[359886472,1746403848767,-450.0,0.00019985,2]
[359886474,1746403848777,-450.0,0.00019985,2]
[359886476,1746403848787,-450.0,0.00019985,2]
[359886478,1746403848797,-450.0,0.00019985,2]
[359886480,1746403848807,-450.0,0.00019985,2]
[359886482,1746403848817,-450.0,0.00019985,2]
[359886484,1746403848827,-473.23406,0.00019985,2]
[359886485,1746403848838,-450.0,0.00019985,2]
[359886487,1746403848848,-151.0,0.00019985,2]
[359886490,1746403848857,-450.0,0.00019985,2]
[359886492,1746403848868,-450.0,0.00019985,2]
[359886493,1746403848878,-151.0,0.00019985,2]
[359886495,1746403848888,-252.34,0.00019985,2]
[359886498,1746403848898,-450.0,0.00019985,2]
[359886499,1746403848908,-470.0,0.00019985,2]
[359886502,1746403848918,-297.38,0.00019985,2]
[359886504,1746403848928,-450.0,0.00019985,2]
[359886506,1746403848938,-528.51,0.00019985,2]
[359886508,1746403848949,-492.7,0.00019985,2]
[359886510,1746403848958,-450.0,0.00019985,2]
[359886512,1746403848969,-450.0,0.00019985,2]
[359886514,1746403848978,-510.0,0.00019985,2]
[359886516,1746403848987,-450.0,0.00019985,2]
[359886518,1746403848997,-151.0,0.00019985,2]
[359886520,1746403849007,-450.0,0.00019985,2]
[359886522,1746403849017,-450.0,0.00019985,2]
[359886524,1746403849027,-450.0,0.00019985,2]
[359886526,1746403849037,-450.0,0.00019985,2]
[359886528,1746403849046,-469.14245143,0.00019985,2]
[359890650,1746403896055,5000.0,0.00019,2]
[359890653,1746403909586,16657.81461836,0.0001899,2]
[359890655,1746403938357,250.0,0.00017,2]
[359890656,1746403939442,300.0,0.00019,2]
[359890660,1746403997020,470.0,0.00029999,30]
[359890661,1746404116699,474.98158958,0.00012893,2]
[359890662,1746404152307,1000.0,0.0001891,2]
[359890663,1746404176423,177.95,0.00018909,2]
[359890664,1746404238579,187.64,0.00018925,2]
[359890665,1746404238819,187.64,0.0001902,2]
[359890666,1746404280522,203.77,0.00018897,2]
[359890667,1746404299620,200.0,0.00018899,2]
[359890668,1746404445779,1147.3,0.00018897,2]
[359890669,1746404500806,500.0,0.000195,2]
[359890674,1746404755862,17175.48727969,6.94e-05,2]
[359890675,1746404768090,2406.12221413,8e-05,2]
[359890680,1746404831226,1683.35991904,0.00015,2]
[359890681,1746404834603,2336.04243038,0.00015,2]
[359890682,1746404837018,205.0,9.8e-05,2]
[359890684,1746404840765,1642.98815676,0.0001305,2]
[359890685,1746404842569,-157.88228322,0.000196,2]
[359890686,1746404842592,-157.96587968,0.00019625,2]
[359890687,1746404847332,-42.03412032,0.00019625,2]
[359890688,1746404847354,-150.0,0.00019633,2]
[359890689,1746404847376,-57.96587968,0.00019649,2]
[359890755,1746404982759,178.22,0.00015099,2]
[359890756,1746404989973,1824.53,0.00018873,2]
[359890757,1746405006084,-125.86516041,0.00019649,2]
[359890758,1746405006107,-200.0,0.00019685,2]
[359890759,1746405006129,-207.4,0.00019721,2]
[359890760,1746405006150,-365.89594671,0.0001975,2]
[359890761,1746405016543,169.96,0.00018888,2]
[359890762,1746405022908,409.43,0.00016968,2]
[359890763,1746405023132,409.43,0.00019232,2]
[359890765,1746405031794,-2500.0,0.000198,2]
[359890766,1746405031804,-274.63528549,0.00019801,2]
[359890767,1746405031814,-150.0,0.00019803,2]
[359890768,1746405031823,-274.63528545,0.00019812,2]
[359890769,1746405031832,-274.63528545,0.00019823,2]
[359890770,1746405031843,-274.63528545,0.00019834,2]
[359890771,1746405031851,-1000.0,0.00019836,2]
[359890772,1746405031860,-150.0,0.00019841,2]
[359890773,1746405031870,-274.63528545,0.00019845,2]
[359890774,1746405031881,-274.63528545,0.00019856,2]
[359890775,1746405031890,-300.0,0.00019866,2]
[359890776,1746405031899,-274.63528545,0.00019867,2]
[359890777,1746405031909,-1200.0,0.00019867,2]
[359890778,1746405031918,-300.0,0.00019867,2]
[359890779,1746405031927,-151.0,0.00019868,2]
[359890780,1746405031937,-151.0,0.00019868,2]
[359890781,1746405031947,-151.0,0.00019868,2]
[359890782,1746405031956,-668.65185757,0.00019868,2]
[359890783,1746405031969,-151.0,0.00019868,2]
[359890784,1746405031979,-500.0,0.00019873,2]
[359890785,1746405031988,-4835.572,0.00019875,2]
[359890786,1746405031997,-274.63528545,0.00019878,2]
[359890787,1746405032006,-750.0,0.00019879,2]
[359890788,1746405032017,-652.25083912,0.0001988,2]
[359890789,1746405032026,-8358.26435797,0.0001988,2]
[359890790,1746405032039,-8085.51304203,0.0001988,2]
[359890791,1746405032048,-1309.7144,0.0001988,2]
[359890792,1746405032058,-161.07157223,0.00019882,2]
[359890793,1746405032067,-1644.52416955,0.00019882,2]
[359890794,1746405032076,-160.93902895,0.00019883,2]
[359890795,1746405032086,-169.0254,0.00019883,2]
[359890796,1746405032095,-1158.3902381,0.00019884,2]
[359890797,1746405032106,-486.13393136,0.00019884,2]
[359890798,1746405032116,-1256.10905397,0.00019885,2]
[359890800,1746405032127,-510.674481,0.00019885,2]
[359890802,1746405032138,-2775.32456503,0.00019885,2]
[359890803,1746405032147,-103.754839,0.00019886,2]
[359890806,1746405032161,-1540.76933046,0.00019886,2]
[359890808,1746405032171,-8746.70394507,0.00019886,2]
[359890810,1746405032182,-861.19573935,0.00019886,2]
[359890812,1746405032193,-5190.21163903,0.00019886,2]
[359890815,1746405032203,-10013.71617655,0.00019886,2]
[359890817,1746405032212,-1000.0,0.00019886,2]
[359890819,1746405032221,-1644.52416946,0.00019888,2]
[359890822,1746405032230,-274.63528545,0.00019889,2]
[359890824,1746405032239,-500.0,0.00019898,2]
[359890826,1746405032248,-500.0,0.00019898,2]
[359890828,1746405032257,-500.0,0.00019898,2]
[359890831,1746405032266,-500.0,0.00019898,2]
[359890832,1746405032275,-500.0,0.00019898,2]
[359890833,1746405032285,-637.76535349,0.00019898,2]
[359890834,1746405032294,-500.0,0.00019898,2]
[359890835,1746405032303,-500.0,0.00019898,2]
[359890836,1746405032312,-500.0,0.00019898,2]
[359890837,1746405032321,-500.0,0.00019898,2]
[359890838,1746405032331,-500.0,0.00019898,2]
[359890839,1746405032340,-500.0,0.00019898,2]
[359890840,1746405032349,-500.0,0.00019898,2]
[359890841,1746405032358,-500.0,0.00019898,2]
[359890842,1746405032367,-500.0,0.00019898,2]
[359890843,1746405032376,-500.0,0.00019898,2]
[359890844,1746405032385,-500.0,0.00019898,2]
[359890845,1746405032394,-500.0,0.00019898,2]
[359890846,1746405032403,-500.0,0.00019898,2]
[359890847,1746405032412,-500.0,0.00019898,2]
[359890848,1746405032421,-500.0,0.00019898,2]
[359890849,1746405032430,-500.0,0.00019898,2]
[359890850,1746405032439,-500.0,0.00019898,2]
[359890851,1746405032448,-500.0,0.00019898,2]
[359890852,1746405032458,-500.0,0.00019898,2]
[359890853,1746405032467,-500.0,0.00019898,2]
[359890854,1746405032476,-500.0,0.00019898,2]
[359890855,1746405032485,-634.41489879,0.00019898,2]
[359890856,1746405032494,-500.0,0.00019898,2]
[359890857,1746405032503,-500.0,0.00019898,2]
[359890858,1746405032513,-500.0,0.00019898,2]
[359890859,1746405032522,-500.0,0.00019898,2]
[359890860,1746405032532,-500.0,0.00019898,2]
[359890861,1746405032541,-500.0,0.00019898,2]
[359890862,1746405032551,-500.0,0.00019898,2]
[359890863,1746405032560,-500.0,0.00019898,2]
[359890864,1746405032569,-500.0,0.00019898,2]
[359890865,1746405032579,-500.0,0.00019898,2]
[359890866,1746405032588,-500.0,0.00019898,2]
[359890867,1746405032598,-181.97392816,0.00019898,2]
[359890868,1746405032607,-500.0,0.00019898,2]
[359890869,1746405032616,-500.0,0.00019898,2]
[359890870,1746405032626,-500.0,0.00019898,2]
[359890871,1746405032635,-500.0,0.00019898,2]
[359890872,1746405032645,-500.0,0.00019898,2]
[359890873,1746405032654,-500.0,0.00019898,2]
[359890874,1746405032663,-500.0,0.00019898,2]
[359890875,1746405032672,-500.0,0.00019898,2]
[359890876,1746405032682,-500.0,0.00019898,2]
[359890877,1746405032693,-500.0,0.00019898,2]
[359890878,1746405032702,-500.0,0.00019898,2]
[359890879,1746405032711,-500.0,0.00019898,2]
[359890880,1746405032721,-463.44148988,0.00019898,2]
[359890881,1746405032730,-500.0,0.00019898,2]
[359890882,1746405032739,-500.0,0.00019898,2]
[359890883,1746405032748,-500.0,0.00019898,2]
[359890884,1746405032757,-500.0,0.00019898,2]
[359890885,1746405032766,-500.0,0.00019898,2]
[359890886,1746405032775,-500.0,0.00019898,2]
[359890887,1746405032785,-500.0,0.00019898,2]
[359890888,1746405032794,-500.0,0.00019898,2]
[359890889,1746405032803,-500.0,0.00019898,2]
[359890890,1746405032813,-500.0,0.00019898,2]
[359890891,1746405032823,-500.0,0.00019898,2]
[359890892,1746405032832,-500.0,0.00019898,2]
[359890893,1746405032841,-500.0,0.00019898,2]
[359890894,1746405032851,-500.0,0.00019898,2]
[359890895,1746405032860,-500.0,0.00019898,2]
[359890896,1746405032870,-500.0,0.00019898,2]
[359890897,1746405032879,-500.0,0.00019898,2]
[359890898,1746405032889,-500.0,0.00019898,2]
[359890899,1746405033066,-500.0,0.00019898,2]
[359890900,1746405033077,-500.0,0.00019898,2]
[359890901,1746405033087,-550.0,0.00019898,2]
[359890902,1746405033097,-470.0,0.00019899,2]
[359890903,1746405033107,-450.0,0.00019899,2]
[359890904,1746405033116,-444.72482314,0.00019899,2]
[359890905,1746405033126,-470.0,0.00019899,2]
[359890906,1746405033135,-450.0,0.00019899,2]
[359890907,1746405033144,-470.0,0.00019899,2]
[359890908,1746405033153,-614.59,0.00019899,2]
[359890909,1746405033163,-450.0,0.00019899,2]
[359890910,1746405033172,-450.0,0.00019899,2]
[359890911,1746405033182,-437.05,0.00019899,2]
[359890912,1746405033191,-450.0,0.00019899,2]
[359890913,1746405033201,-256.01489777,0.00019899,2]
[359890914,1746405033210,-450.0,0.00019899,2]
[359890915,1746405033220,-274.63528545,0.000199,2]
[359890916,1746405033229,-53762.51396652,0.000199,2]
[359890917,1746405033241,-362.5,0.000199,2]
[359890918,1746405037777,-1644.52416946,0.0001989,2]
[359890919,1746405037787,-390.01571054,0.00019899,2]
[359890920,1746405037798,-59.98428946,0.00019899,2]
[359890921,1746405037808,-150.0,0.00019901,2]
[359890922,1746405037817,-1000.0,0.00019919,2]
[359890923,1746405037826,-609.11571046,0.00019923,2]
[359890924,1746405037838,-390.88428954,0.00019923,2]
[359890925,1746405037847,-151.0,0.00019923,2]
[359890926,1746405037856,-150.0,0.00019972,2]
[359890927,1746405037866,-33.11571016,0.00019973,2]
[359890928,1746405037937,-466.88428984,0.00019973,2]
[359890929,1746405037946,-500.0,0.00019973,2]
[359890930,1746405037956,-500.0,0.00019973,2]
[359890931,1746405037967,-500.0,0.00019973,2]
[359890932,1746405037977,-522.89013431,0.00019973,2]
[359890933,1746405037986,-500.0,0.00019973,2]
[359890934,1746405037996,-500.0,0.00019973,2]
[359890935,1746405038006,-502.06385384,0.00019973,2]
[359890936,1746405038015,-500.0,0.00019973,2]
[359890937,1746405038025,-256.75326994,0.00019973,2]
[359890938,1746405038034,-418.06454181,0.00019973,2]
[359890939,1746405038043,-500.0,0.00019973,2]
[359890940,1746405038052,-450.0,0.00019973,2]
[359890941,1746405038062,-450.0,0.00019973,2]
[359890942,1746405038071,-450.0,0.00019973,2]
[359890943,1746405038081,-243.47060265,0.00019973,2]
[359890944,1746405038093,-206.52939735,0.00019973,2]
[359890945,1746405038103,-450.0,0.00019973,2]